bitfinex-derivatives/quotes_ETHF0:USTF0_20250709
["timestamp","ask_amount","ask_price","bid_price","bid_amount"]
[1752094854828,3.23013847,2738.3,2738.2,2.966362]
[1752094855030,0.73019,2738.3,2738.2,2.966362]
[1752094855629,1.73958398,2738.3,2738.2,2.966362]
[1752094855835,1.73958398,2738.3,2738.2,3.928062]
[1752094856028,1.73958398,2738.3,2738.2,5.197062]
[1752094857425,1.73958398,2738.3,2738.2,8.404862]
[1752094858831,2.36888398,2738.3,2738.2,8.404862]
[1752094859031,1.73958398,2738.3,2738.2,5.197062]
[1752094862339,2.36888398,2738.3,2738.2,4.235362]
[1752094862733,3.09907398,2738.3,2738.2,3.563562]
[1752094863134,2.36888398,2738.3,2738.2,3.563562]
[1752094863330,1.73958398,2738.3,2738.2,5.197062]
[1752094864138,1.73958398,2738.3,2738.2,7.443162]
[1752094864844,2.46977398,2738.3,2738.2,8.404862]
[1752094865035,1.73958398,2738.3,2738.2,8.404862]
[1752094865938,1.73958398,2738.3,2738.2,4.235362]
[1752094866640,1.73958398,2738.3,2738.2,5.197062]
[1752094866842,2.46977398,2738.3,2738.2,5.197062]
[1752094868041,1.73958398,2738.3,2738.2,5.197062]
[1752094869639,3.14297398,2738.3,2738.2,4.235362]
[1752094870742,3.14297398,2738.3,2738.2,4.199862]
[1752094870943,3.14297398,2738.3,2738.2,3.563562]
[1752094871137,3.14297398,2738.3,2738.2,4.199862]
[1752094871347,2.41278398,2738.3,2738.2,4.199862]
[1752094871649,3.14297398,2738.3,2738.2,4.199862]
[1752094872641,3.14297398,2738.3,2738.2,2.63552]
[1752094872842,3.14297398,2738.3,2738.2,5.135262]
[1752094873046,1.73958398,2738.3,2738.2,5.135262]
[1752094874849,2.46977398,2738.3,2738.2,5.135262]
[1752094875853,2.41278398,2738.3,2738.2,4.199862]
[1752094876050,3.14297398,2738.3,2738.2,4.199862]
[1752094876653,2.41278398,2738.3,2738.2,4.199862]
[1752094877249,1.73958398,2738.3,2738.2,5.135262]
[1752094877946,3.14297398,2738.3,2738.2,5.135262]
[1752094878147,2.46977398,2738.3,2738.2,5.135262]
[1752094878648,2.41278398,2738.3,2738.2,5.135262]
[1752094878852,3.14297398,2738.3,2738.2,5.135262]
[1752094879656,2.41278398,2738.3,2738.2,4.199862]
[1752094880156,3.14297398,2738.3,2738.2,4.199862]
[1752094880857,2.41278398,2738.3,2738.2,4.199862]
[1752094881054,0.6732,2738.3,2738.2,8.343062]
[1752094881456,1.6638,2738.9,2738.4,1.8254]
[1752094881657,0.73011,2738.7,2738.6,2.294432]
[1752094881853,2.90387383,2738.7,2738.6,2.294432]
[1752094882051,2.17376383,2738.7,2738.6,2.294432]
[1752094882355,2.17376383,2738.7,2738.6,2.930732]
[1752094882559,2.17376383,2738.7,2738.6,3.866132]
[1752094882858,0.6732,2738.7,2738.6,3.866132]
[1752094883058,1.40329,2738.7,2738.6,2.930732]
[1752094883453,2.79713412,2738.7,2738.6,2.930732]
[1752094884249,1.82471,2739.5,2739.1,0.72995]
[1752094884460,0.7299,2739.5,2739.4,0.72988]
[1752094884662,1.4031,2739.5,2739.4,0.72988]
[1752094884954,0.6732,2739.5,2739.4,2.294222]
[1752094885161,0.6732,2739.5,2739.4,2.930522]
[1752094885663,0.6732,2739.5,2739.4,3.4534857]
[1752094886358,0.7446,2739.9,2739.7,0.72979]
[1752094886667,0.6732,2739.8,2739.7,0.72979]
[1752094886958,0.6732,2739.8,2739.7,1.25237106]
[1752094887153,0.6732,2739.8,2739.7,2.81671306]
[1752094887548,0.6732,2739.8,2739.7,4.03801306]
[1752094888550,1.40299,2739.8,2739.7,4.03713223]
[1752094888755,0.6732,2739.8,2739.7,4.03713223]
[1752094889361,1.40299,2739.8,2739.7,4.03713223]
[1752094889562,0.6732,2739.8,2739.7,4.03713223]
[1752094890061,0.72978,2739.9,2739.8,0.72979]
[1752094890257,0.72976,2740.0,2739.9,1.564342]
[1752094890452,0.72977,2739.9,2739.8,1.564342]
[1752094890655,6.34770459,2739.9,2739.8,0.52118197]
[1752094890854,12.28040459,2739.9,2739.8,0.52118197]
[1752094891559,0.72982,2739.7,2739.6,2.8326]
[1752094891761,1.40302,2739.7,2739.6,2.8326]
[1752094892061,2.33872,2739.7,2739.6,2.8326]
[1752094892361,7.33872,2739.7,2739.6,2.8326]
[1752094892663,0.72995,2739.2,2739.1,0.72996]
[1752094892961,1.40315,2739.2,2739.1,2.294302]
[1752094893161,2.33885,2739.2,2739.1,0.72996]
[1752094893554,0.6732,2739.2,2739.1,1.36626]
[1752094893756,3.2078,2739.5,2739.4,0.7299]
[1752094893954,4.61088,2739.5,2739.4,1.3662]
[1752094894160,4.61088,2739.5,2739.4,0.7299]
[1752094894358,4.61088,2739.5,2739.4,1.3662]
[1752094895162,3.2078,2739.5,2739.4,2.930542]
[1752094895368,0.6822,2740.0,2739.9,0.72977]
[1752094895567,0.6822,2740.0,2739.4,3.865942]
[1752094895568,0.72982,2739.8,2739.7,2.294142]
[1752094895768,1.40302,2739.8,2739.7,2.930442]
[1752094895970,1.40302,2739.8,2739.7,2.294142]
[1752094896265,0.6732,2739.8,2739.7,2.930442]
[1752094896459,1.40299,2739.8,2739.7,2.930442]
[1752094896663,0.6732,2739.8,2739.7,2.930442]
[1752094897267,1.40299,2739.8,2739.7,2.930442]
[1752094897569,0.6732,2739.8,2739.7,2.930442]
[1752094897766,0.6732,2739.8,2739.7,3.897342]
[1752094898164,3.2078,2740.1,2740.0,0.72974]
[1752094898360,1.34390043,2740.1,2740.0,3.897282]
[1752094898569,3.2078,2740.5,2740.4,0.72963]
[1752094898861,3.2078,2740.5,2740.4,1.69653]
[1752094899160,3.93732,2740.9,2740.7,0.72954]
[1752094899367,0.6732,2740.8,2740.7,2.958382]
[1752094900164,1.40273,2740.8,2740.7,0.6645]
[1752094900360,0.6732,2740.8,2740.7,2.958392]
[1752094900566,3.2078,2740.9,2740.8,0.72953]
[1752094900770,4.5583,2740.9,2740.8,4.280872]
[1752094900968,4.5583,2740.9,2740.8,2.71653]
[1752094901372,4.5583,2740.9,2740.8,2.05203]
[1752094901572,4.5583,2740.9,2740.8,2.71653]
[1752094902068,3.2078,2740.9,2740.8,4.280872]
[1752094902266,0.72949,2741.0,2740.9,0.7295]
[1752094902567,1.35049,2741.0,2740.9,3.594642]
[1752094902767,1.35049,2741.0,2740.9,3.529642]
[1752094902972,1.35049,2741.0,2740.9,4.259142]
[1752094903572,1.35049,2741.0,2740.9,4.05199633]
[1752094903772,1.35049,2741.0,2740.9,4.78149633]
[1752094903967,2.79188,2741.5,2740.9,4.05199633]
[1752094904167,2.79188,2741.5,2740.9,2.69479]
[1752094904168,1.35047,2741.0,2740.9,2.69479]
[1752094904373,0.621,2741.0,2740.9,3.21701984]
[1752094904573,0.621,2741.0,2740.9,4.78136184]
[1752094904774,0.72946,2741.1,2741.0,0.72947]
[1752094904975,0.72942,2741.3,2741.2,0.72941]
[1752094905176,0.72933,2741.6,2741.5,0.72932]
[1752094905478,1.35033,2741.6,2741.5,1.67718842]
[1752094905674,1.35033,2741.6,2741.5,3.97087042]
[1752094905879,1.35033,2741.6,2741.5,3.24153042]
[1752094906477,0.621,2741.6,2741.5,3.24153042]
[1752094906673,3.2078,2742.0,2741.5,4.20843042]
[1752094906883,0.72922,2742.0,2741.9,1.564342]
[1752094907081,0.72922,2742.0,2741.9,2.75107184]
[1752094907082,1.35022,2742.0,2741.9,2.75107184]
[1752094907274,56.7503,2742.7,2741.9,4.98847184]
[1752094907480,0.72912,2742.4,2742.3,0.72912]
[1752094907679,0.621,2742.4,2742.3,2.66412]
[1752094907880,8.11423847,2743.0,2742.3,7.8879]
[1752094908076,8.11423847,2743.0,2742.7,1.564342]
[1752094908281,0.621,2742.8,2742.7,1.564342]
[1752094908479,0.621,2742.8,2742.7,1.39352]
[1752094908776,0.621,2742.8,2742.3,4.64753459]
[1752094908777,0.621,2742.8,2742.3,7.85533459]
[1752094908975,1.34999,2742.8,2742.7,1.564342]
[1752094909182,1.34999,2742.8,2742.7,2.74984596]
[1752094909482,1.34999,2742.8,2742.7,1.03385195]
[1752094909683,1.82221,2743.3,2742.7,1.03385195]
[1752094909684,0.72888,2743.3,2743.2,0.72888]
[1752094909977,1.34988,2743.3,2743.2,0.5132269]
[1752094910178,1.34986,2743.3,2743.2,0.51327457]
[1752094910375,0.621,2743.3,2743.0,0.72894]
[1752094910572,2.05338857,2743.2,2743.1,3.32008498]
[1752094910978,0.72897,2742.9,2742.8,0.6942]
[1752094911184,0.72897,2742.9,2742.8,1.73484821]
[1752094911477,3.2078,2743.2,2742.8,1.17734821]
[1752094911679,0.72894,2743.0,2742.9,0.51246447]
[1752094912590,0.72905,2742.6,2742.5,1.222]
[1752094912782,0.72905,2742.6,2742.5,0.49488809]
[1752094912982,0.72914,2742.3,2742.1,3.93698]
[1752094913286,1.35014,2742.3,2742.2,3.4529011]
[1752094913482,1.35014,2742.3,2742.2,0.4949091]
[1752094914187,0.72923,2741.9,2741.8,3.2078]
[1752094914486,0.72923,2741.9,2741.8,3.70269207]
[1752094914687,0.72923,2741.9,2741.8,5.93153407]
[1752094914882,1.35023,2741.9,2741.8,5.26711277]
[1752094915483,1.35023,2741.9,2741.8,5.93161277]
[1752094915684,1.35023,2741.9,2741.8,6.66087277]
[1752094916390,0.621,2741.9,2741.8,6.66087277]
[1752094916684,0.9685,2742.4,2741.8,6.89851277]
[1752094916884,0.72912,2742.4,2742.3,0.72911]
[1752094917088,0.72908,2742.5,2742.3,1.39361]
[1752094917282,0.72908,2742.5,2742.4,0.7291]
[1752094917486,1.35008,2742.5,2742.4,2.6975]
[1752094917687,0.72904,2742.7,2742.4,8.48617659]
[1752094917887,0.72904,2742.7,2742.6,2.293362]
[1752094918192,0.72901,2742.8,2742.7,0.72901]
[1752094918394,1.35001,2742.8,2742.7,1.3039]
[1752094918692,0.72899,2742.9,2742.8,0.72898]
[1752094918890,1.34999,2742.9,2742.8,0.72898]
[1752094919288,1.34999,2742.9,2742.8,1.3039]
[1752094919788,1.34999,2742.9,2742.8,2.03289]
[1752094920593,0.72904,2742.7,2742.6,0.72903]
[1752094920787,0.72904,2742.7,2742.6,1.23115397]
[1752094920988,0.621,2742.9,2742.8,0.72899]
[1752094921290,0.72896,2743.0,2742.9,0.72895]
[1752094921591,1.34996,2743.0,2742.9,1.321051]
[1752094922091,1.34996,2743.0,2742.9,2.714521]
[1752094922092,0.621,2743.0,2742.9,2.714521]
[1752094922295,0.621,2743.0,2742.9,2.050021]
[1752094922589,0.621,2743.0,2742.9,1.985551]
[1752094922590,1.34994,2743.0,2742.9,1.985551]
[1752094922791,1.34994,2743.0,2742.9,0.6645]
[1752094923593,1.34994,2743.0,2742.9,1.16706563]
[1752094924186,1.34994,2743.0,2742.9,1.89603563]
[1752094924491,1.34994,2743.0,2742.9,1.16706563]
[1752094924692,1.34994,2743.0,2742.9,1.89603563]
[1752094926388,0.72893,2743.1,2743.0,0.72891]
[1752094926589,0.72893,2743.1,2743.0,4.79011763]
[1752094926789,0.72888,2743.3,2743.2,0.72886]
[1752094926992,0.72891,2743.2,2743.1,2.293232]
[1752094927190,1.34991,2743.2,2743.1,2.79667106]
[1752094927396,0.621,2743.2,2743.1,4.42807106]
[1752094927688,1.34989,2743.2,2743.1,2.73228106]
[1752094927885,1.34989,2743.2,2743.1,1.16793906]
[1752094928295,0.72888,2743.3,2743.2,0.72889]
[1752094928495,1.34988,2743.3,2743.2,4.06208106]
[1752094928789,1.34988,2743.3,2743.2,2.49773906]
[1752094928983,1.34988,2743.3,2743.2,1.83323906]
[1752094929383,4.55768,2743.3,2743.2,1.83323906]
[1752094929588,4.55768,2743.3,2743.2,3.21632906]
[1752094929788,4.55768,2743.3,2743.2,2.48743906]
[1752094930189,1.34988,2743.3,2743.2,2.48743906]
[1752094930386,1.34988,2743.3,2743.2,3.00518656]
[1752094932295,4.55768,2743.3,2743.2,3.00518656]
[1752094932491,6.82173646,2743.3,2743.2,1.02118656]
[1752094932893,3.61393646,2743.3,2743.2,1.02118656]
[1752094933295,2.64863646,2743.3,2743.2,1.02118656]
[1752094933696,5.85643646,2743.3,2743.2,1.02118656]
[1752094934098,5.85643646,2743.3,2743.2,1.67538656]
[1752094934493,5.85643646,2743.3,2743.2,1.1719475]
[1752094934699,5.85643646,2743.3,2743.2,1.68356785]
[1752094934896,5.85643646,2743.3,2743.2,2.97706785]
[1752094935200,1.29875646,2743.3,2743.2,6.27839985]
[1752094935393,0.72886,2743.3,2743.2,6.26990985]
[1752094935596,2.66590278,2743.3,2743.2,5.26180985]
[1752094936098,6.83900278,2743.3,2743.2,1.68356785]
[1752094936499,5.87370278,2743.3,2743.2,1.68356785]
[1752094936700,2.66590278,2743.3,2743.2,1.68356785]
[1752094937397,5.87370278,2743.3,2743.2,1.68356785]
[1752094939004,5.87370278,2743.3,2743.2,1.1719475]
[1752094939600,5.87370278,2743.3,2743.2,2.4954475]
[1752094939800,2.66590278,2743.3,2743.2,2.4954475]
[1752094941102,2.66590278,2743.3,2743.2,2.49812681]
[1752094941604,1.29234278,2743.3,2743.2,8.20082153]
[1752094941799,0.72882,2743.5,2743.4,0.72881]
[1752094941995,1.37352,2743.5,2743.4,1.38301]
[1752094942199,2.65955821,2743.5,2743.4,2.947352]
[1752094942598,1.28603821,2743.5,2743.4,2.947352]
[1752094942798,2.65954821,2743.5,2743.4,2.293152]
[1752094943007,2.65954821,2743.5,2743.4,2.218542]
[1752094943208,2.65954821,2743.5,2743.4,2.293182]
[1752094943604,2.65954821,2743.5,2743.4,1.564342]
[1752094943803,2.65954821,2743.5,2743.4,2.218542]
[1752094944117,2.65954821,2743.5,2743.4,2.947382]
[1752094944303,2.65954821,2743.5,2743.4,2.218542]
[1752094944506,1.28603821,2743.5,2743.4,3.955482]
[1752094945109,3.2078,2743.8,2743.7,0.72876]
[1752094945310,53.1949,2744.1,2743.7,0.72876]
[1752094945311,0.72867,2744.1,2744.0,0.72865]
[1752094945512,1.37337,2744.1,2744.0,2.947192]
[1752094945912,0.6447,2744.1,2744.0,2.947192]
[1752094946106,0.72863,2744.2,2744.1,0.72862]
[1752094946315,0.72863,2744.2,2744.1,3.590962]
[1752094946609,1.37333,2744.2,2744.1,1.9522]
[1752094947015,0.72876,2743.7,2743.6,0.72877]
[1752094947205,0.72872,2743.9,2743.8,0.7287]
[1752094947410,0.72864,2744.2,2744.1,2.292972]
[1752094947610,1.37334,2744.2,2744.1,2.947172]
[1752094947812,0.72862,2744.3,2744.2,0.72861]
[1752094948007,0.7286,2744.3,2744.2,1.2671]
[1752094948311,0.7286,2744.3,2744.2,2.64992]
[1752094948312,1.3733,2744.3,2744.2,2.64992]
[1752094949213,1.3733,2744.3,2744.2,4.214262]
[1752094949617,1.3733,2744.3,2744.2,3.485642]
[1752094950010,1.3733,2744.3,2744.2,4.214262]
[1752094950213,1.3733,2744.3,2744.2,3.485642]
[1752094950411,0.72865,2744.1,2744.0,0.911]
[1752094950613,1.37335,2744.1,2744.0,0.911]
[1752094950812,2.33865,2744.1,2744.0,0.911]
[1752094951310,1.37335,2744.1,2744.0,3.129542]
[1752094951614,1.37335,2744.1,2744.0,3.858222]
[1752094952018,1.37335,2744.1,2744.0,3.129542]
[1752094952318,1.37335,2744.1,2744.0,2.218542]
[1752094952619,0.6447,2744.1,2744.0,4.204622]
[1752094953016,0.72863,2744.2,2744.1,0.72865]
[1752094953211,1.37332,2744.2,2744.1,2.218542]
[1752094953518,0.72862,2744.3,2744.1,2.218542]
[1752094953720,0.7286,2744.3,2744.2,2.808742]
[1752094954018,1.3733,2744.3,2744.2,2.808742]
[1752094954221,2.3386,2744.3,2744.2,2.808742]
[1752094954615,1.3733,2744.3,2744.2,4.191562]
[1752094954815,1.3733,2744.3,2744.2,3.462942]
[1752094955615,0.72865,2744.1,2744.0,3.462]
[1752094955816,1.37335,2744.1,2744.0,4.84488]
[1752094956014,1.37335,2744.1,2744.0,6.409222]
[1752094956814,1.37335,2744.1,2744.0,5.680542]
[1752094957016,4.58115,2744.1,2744.0,5.680542]
[1752094957218,0.72863,2744.2,2744.1,0.72865]
[1752094957416,0.72862,2744.3,2744.2,0.72861]
[1752094957611,1.37332,2744.3,2744.2,0.6542]
[1752094957810,0.36922381,2744.8,2744.4,0.72857]
[1752094957811,3.2078,2744.8,2744.4,0.72857]
[1752094958019,3.2078,2744.8,2744.4,2.947112]
[1752094958020,0.72854,2744.5,2744.4,2.947112]
[1752094958217,3.2078,2745.1,2744.7,1.564342]
[1752094958417,0.72845,2744.9,2744.8,2.291942]
[1752094958617,0.72852,2744.6,2744.5,1.564342]
[1752094958818,0.72852,2744.6,2744.5,2.218542]
[1752094959019,0.7286,2744.3,2744.2,0.7276]
[1752094959219,0.7286,2744.3,2744.2,2.11041]
[1752094959513,0.7286,2744.3,2744.2,3.674752]
[1752094959812,0.7286,2744.3,2744.2,2.959942]
[1752094960724,0.7286,2744.3,2744.2,0.668]
[1752094962216,0.7286,2744.3,2744.0,2.9709]
[1752094962217,0.72865,2744.1,2744.0,2.9709]
[1752094962413,0.72865,2744.1,2744.0,5.203242]
[1752094962616,0.72865,2744.1,2744.0,2.7279]
[1752094962817,3.93645,2744.1,2744.0,2.7279]
[1752094963716,0.72884,2743.4,2743.3,2.17567938]
[1752094963924,1.40184,2743.4,2743.3,0.668]
[1752094964125,1.40184,2743.4,2743.3,1.564342]
[1752094964522,1.40184,2743.4,2743.3,2.232342]
[1752094965217,1.40184,2743.4,2743.3,2.961202]
[1752094965417,0.72884,2743.4,2743.3,2.961202]
[1752094965824,1.40184,2743.4,2743.3,2.232342]
[1752094966124,1.40184,2743.4,2743.3,2.961202]
[1752094967727,1.40184,2743.4,2743.3,2.232342]
[1752094968029,4.60964,2743.4,2743.3,2.232342]
[1752094968728,2.33294,2743.4,2743.3,1.564342]
[1752094969326,1.40184,2743.4,2743.3,2.961202]
[1752094969528,1.40184,2743.4,2743.3,2.232342]
[1752094970929,4.60964,2743.4,2743.3,2.232342]
[1752094971527,4.60964,2743.4,2743.3,3.573742]
[1752094972727,4.8119,2743.4,2743.1,5.4736]
[1752094972927,0.72889,2743.2,2743.1,6.7622]
[1752094973123,1.40189,2743.2,2743.1,7.4302]
[1752094973428,1.40189,2743.2,2743.1,3.520942]
[1752094974027,1.40189,2743.2,2743.1,4.249862]
[1752094974227,1.40189,2743.2,2743.1,3.520942]
[1752094976334,1.82196,2743.6,2743.1,7.679942]
[1752094976528,0.72884,2743.4,2743.3,1.564342]
[1752094976733,1.40184,2743.4,2743.3,2.232342]
[1752094977325,3.2078,2744.1,2743.3,11.391342]
[1752094977527,0.72878,2743.6,2743.5,6.33795272]
[1752094977721,0.72878,2743.6,2743.5,9.16875272]
[1752094977925,0.72878,2743.6,2743.5,11.68429472]
[1752094978524,0.72878,2743.6,2743.5,8.47649472]
[1752094978935,0.72877,2743.7,2743.6,0.72875]
[1752094979125,0.72878,2743.6,2743.5,3.114]
[1752094979330,1.40178,2743.6,2743.5,2.1628]
[1752094979532,1.40178,2743.6,2743.5,4.395142]
[1752094980234,1.40178,2743.6,2743.5,3.727142]
[1752094980538,1.40178,2743.6,2743.5,1.2562]
[1752094980937,1.40178,2743.6,2743.5,1.9242]
[1752094982131,4.60958,2743.6,2743.5,1.9242]
[1752094982636,1.40178,2743.6,2743.5,1.9242]
[1752094982837,0.72877,2743.7,2743.6,0.72876]
[1752094983135,1.40177,2743.7,2743.6,0.72876]
[1752094983438,1.40177,2743.7,2743.6,1.564342]
[1752094984532,1.40177,2743.7,2743.6,2.232342]
[1752094984833,0.72878,2743.6,2743.5,1.2562]
[1752094985035,1.40178,2743.6,2743.5,1.9242]
[1752094985228,1.40178,2743.6,2743.5,2.820542]
[1752094985432,1.40178,2743.6,2743.5,1.2562]
[1752094985627,1.40178,2743.6,2743.5,1.9242]
[1752094985830,0.72886,2743.3,2743.2,3.07527938]
[1752094986032,0.72886,2743.3,2743.2,3.74327938]
[1752094986332,0.72886,2743.3,2743.2,3.131942]
[1752094986528,0.72881,2743.5,2743.4,0.72881]
[1752094986735,0.72886,2743.4,2743.3,0.72885]
[1752094986930,0.72886,2743.4,2743.3,1.39685]
[1752094987134,0.72883,2743.5,2743.4,0.72882]
[1752094987335,1.40183,2743.5,2743.4,4.280862]
[1752094987530,1.40183,2743.5,2743.4,5.243662]
[1752094987839,1.40183,2743.5,2743.4,4.514842]
[1752094988243,1.40183,2743.5,2743.4,3.552042]
[1752094989234,1.40183,2743.5,2743.4,4.280882]
[1752094989436,0.72883,2743.5,2743.4,5.243682]
[1752094990133,0.72876,2743.8,2743.7,0.72873]
[1752094990338,1.35766,2743.8,2743.7,1.38973]
[1752094990538,1.35766,2743.8,2743.7,0.661]
[1752094990740,1.35766,2743.8,2743.7,2.954102]
[1752094990935,1.35766,2743.8,2743.7,3.831702]
[1752094991135,2.74548,2744.2,2743.7,7.273542]
[1752094991335,0.7287,2743.9,2743.8,2.855642]
[1752094991542,0.7287,2744.0,2743.9,2.293022]
[1752094991731,1.3576,2744.0,2743.9,3.584322]
[1752094992138,1.3576,2744.0,2743.9,5.03132138]
[1752094992338,1.3576,2744.0,2743.9,2.855642]
[1752094992534,1.3576,2744.0,2743.9,5.03132138]
[1752094992941,0.7287,2744.0,2743.9,5.76002138]
[1752094993446,1.3576,2744.0,2743.9,3.584342]
[1752094993944,0.6289,2744.0,2743.9,3.584342]
[1752094994346,0.6289,2744.0,2743.9,5.76666419]
[1752094994546,0.72865,2744.2,2744.1,0.72861]
[1752094994740,1.35752,2744.2,2744.1,1.564342]
[1752094994940,0.72862,2744.2,2744.1,2.292992]
[1752094995243,0.72858,2744.5,2744.4,0.72855]
[1752094995446,0.72854,2744.5,2744.4,1.564342]
[1752094995646,0.72854,2744.5,2744.4,2.292912]
[1752094995837,1.35744,2744.5,2744.4,2.292912]
[1752094996745,1.35744,2744.5,2744.4,2.953912]
[1752094997546,1.35744,2744.5,2744.4,2.225342]
[1752094997746,1.35744,2744.5,2744.4,2.953912]
[1752094997935,0.7286,2744.3,2744.2,0.8805]
[1752094998141,0.7286,2744.3,2744.2,1.5415]
[1752094998438,0.7286,2744.3,2744.2,3.834462]
[1752094999242,0.72855,2744.6,2744.5,0.72852]
[1752094999740,0.72857,2744.5,2744.4,0.72855]
[1752094999942,0.72857,2744.5,2744.4,2.292892]
[1752095000744,1.35747,2744.5,2744.4,2.292892]
[1752095001247,0.6289,2744.5,2744.4,2.292892]
[1752095001442,5.02879,2745.1,2744.8,0.72844]
[1752095001748,0.72851,2744.7,2744.6,3.12985272]
[1752095001947,0.72851,2744.7,2744.6,0.72849]
[1752095002151,0.72848,2744.8,2744.7,0.72846]
[1752095002443,0.72843,2745.0,2744.9,0.72841]
[1752095002647,3.9362,2745.1,2745.0,2.292752]
[1752095002847,0.7284,2745.1,2745.0,2.292752]
[1752095003144,1.3573,2745.1,2745.0,2.225342]
[1752095003348,1.3573,2745.1,2745.0,2.953752]
[1752095003550,0.6289,2745.1,2745.0,3.916552]
[1752095003950,1.35728,2745.1,2745.0,3.916552]
[1752095004644,0.72837,2745.2,2745.1,0.72838]
[1752095004846,0.72834,2745.3,2745.2,1.564342]
[1752095005051,1.35724,2745.3,2745.2,2.225342]
[1752095005245,1.35724,2745.3,2745.2,0.661]
[1752095005847,1.35724,2745.3,2745.2,2.953702]
[1752095006151,58.46029,2745.7,2745.3,0.72831]
[1752095006152,0.72832,2745.4,2745.3,0.72831]
[1752095006345,0.72829,2745.5,2745.4,0.72827]
[1752095006546,0.72829,2745.5,2745.4,2.35207]
[1752095006750,0.72829,2745.5,2745.4,3.916412]
[1752095007058,0.72825,2745.7,2745.6,0.72824]
[1752095007345,0.72825,2745.7,2745.6,1.38924]
[1752095007650,0.72817,2745.9,2745.8,0.72817]
[1752095007853,0.72811,2746.2,2746.1,0.7281]
[1752095008042,3.2078,2746.4,2746.1,1.564342]
[1752095008244,0.72804,2746.4,2746.3,4.772142]
[1752095008446,1.81988,2746.8,2746.3,4.772142]
[1752095008447,5.02765,2746.8,2746.3,2.225342]
[1752095008651,0.72803,2746.5,2746.3,0.661]
[1752095008852,3.2078,2746.8,2746.4,1.564342]
[1752095009043,3.2078,2746.8,2746.3,0.661]
[1752095009044,0.9239,2747.6,2746.7,2.292302]
[1752095009243,0.72783,2747.2,2747.1,1.564342]
[1752095009449,2.44851,2747.2,2746.6,5.60916272]
[1752095009651,2.44851,2747.2,2746.4,0.8623]
[1752095009652,1.81975,2747.0,2746.4,0.8623]
[1752095009952,1.81975,2747.0,2746.3,0.661]
[1752095009953,0.72804,2746.4,2746.3,0.661]
[1752095010153,0.72812,2746.1,2746.0,0.8625]
[1752095010352,0.72801,2746.5,2746.4,1.564342]
[1752095010754,0.72812,2746.1,2746.0,3.92486272]
[1752095011143,0.72812,2746.1,2746.0,3.087842]
[1752095011548,0.72801,2746.5,2746.0,3.815962]
[1752095011752,0.72801,2746.5,2746.4,2.225342]
[1752095012257,3.2078,2746.9,2746.4,2.225342]
[1752095012550,0.72795,2746.8,2746.5,1.2966]
[1752095012749,0.72794,2746.8,2746.5,1.2966]
[1752095012944,0.72796,2746.7,2746.6,0.8625]
[1752095013149,3.2078,2746.9,2746.6,4.050642]
[1752095013351,3.2078,2746.9,2746.8,2.292272]
[1752095013551,2.74334,2747.4,2747.1,0.72784]
[1752095013552,0.9239,2747.4,2747.1,0.72784]
[1752095013853,0.72783,2747.2,2747.1,1.564342]
[1752095014055,1.35673,2747.2,2747.1,1.564342]
[1752095014451,0.72793,2746.8,2746.7,3.2078]
[1752095014650,0.72796,2746.7,2746.6,2.4863]
[1752095014843,0.72794,2746.8,2746.6,2.4863]
[1752095015049,0.72794,2746.8,2746.6,3.21428]
[1752095015258,0.72794,2746.8,2746.7,1.564342]
[1752095015462,0.72796,2746.7,2746.6,1.5235]
[1752095015757,3.2078,2747.0,2746.6,3.087842]
[1752095015953,0.6289,2747.2,2746.8,1.564342]
[1752095016149,0.72791,2746.9,2746.8,1.564342]
[1752095016353,0.72796,2746.7,2746.6,2.25147]
[1752095016553,0.72796,2746.7,2746.6,1.5235]
[1752095016755,1.35686,2746.7,2746.6,5.386142]
[1752095017258,0.9239,2747.1,2746.6,6.114132]
[1752095017259,4.1317,2747.1,2746.6,6.114132]
[1752095017457,0.6289,2746.7,2746.6,4.54979]
[1752095017859,0.6289,2746.7,2746.6,6.114132]
[1752095018258,3.2078,2747.1,2746.9,0.72788]
[1752095018460,0.9095,2747.3,2746.9,2.40136272]
[1752095018665,0.7278,2747.3,2747.2,1.564342]
[1752095018860,0.6289,2747.3,2747.2,1.564342]
[1752095019060,1.3567,2747.3,2747.2,1.564342]
[1752095019863,0.72785,2747.1,2747.0,0.91]
[1752095021462,0.72785,2747.1,2747.0,1.5514]
[1752095021658,0.72785,2747.1,2747.0,0.91]
[1752095021863,1.38255,2747.1,2747.0,0.91]
[1752095022771,0.72794,2746.8,2746.7,0.72796]
[1752095022972,0.72792,2746.9,2746.8,0.72793]
[1752095023366,0.72792,2746.9,2746.8,2.292272]
[1752095023672,0.72792,2746.9,2746.8,3.917872]
[1752095023868,0.72789,2747.0,2746.9,0.72788]
[1752095024061,0.72791,2746.9,2746.8,1.71211]
[1752095024267,0.72791,2746.9,2746.8,2.35351]
[1752095024469,0.7279,2747.0,2746.9,0.72788]
[1752095024674,0.7279,2747.0,2746.9,1.36928]
[1752095024675,1.3826,2747.0,2746.9,1.36928]
[1752095024873,1.3826,2747.0,2746.9,1.564342]
[1752095025165,1.3826,2747.0,2746.9,2.205742]
[1752095025364,1.3826,2747.0,2746.9,1.564342]
[1752095025571,0.7279,2747.0,2746.9,2.205742]
[1752095025768,0.7279,2747.0,2746.9,2.933652]
[1752095026167,1.38258,2747.0,2746.9,2.933652]
[1752095027369,0.72782,2747.3,2747.2,0.7278]
[1752095027566,1.38252,2747.3,2747.2,0.6414]
[1752095027764,0.7278,2747.4,2747.3,0.72778]
[1752095027968,3.2078,2747.7,2747.3,0.72778]
[1752095027969,0.72777,2747.5,2747.4,0.72775]
[1752095028270,0.72777,2747.5,2747.4,2.933492]